[Event "Bundesturnier Hauptturnier 1 2024"]
[Site "Olten"]
[Date "2024.05.11"]
[Round "5.3"]
[White "Bauer, Christian"]
[Black "Sutter, Oliver"]
[Result "1-0"]
[ECO "B10"]
[WhiteElo "2576"]
[BlackElo "2304"]
[Annotator "TA"]
[PlyCount "121"]
[EventDate "2024.05.09"]
[EventType "tourn"]
[EventCountry "SUI"]
[SourceTitle "playchess.com"]
[Source "ChessBase"]
[SourceQuality "1"]
[TimeControl "5400+30"]

{[%evp 45,121,27,37,27,23,23,30,30,30,31,31,29,36,31,30,30,30,23,24,21,28,27,28,0,45,37,40,36,43,39,67,10,21,23,32,13,47,35,97,98,218,133,150,102,194,283,234,246,708,694,644,158,153,136,164,141,1482,1383,902,146,137,141,146,158,145,133,137,140,105,47,48,8,24,8,119,99,1416,1281]} 1. e4 {[%emt 0:00:23]} c6 {[%emt 0:00:13]} 2. Nf3 {[%emt 0:01:34]} d5 {[%emt 0:00:09]} 3. exd5 {[%emt 0:00:39]} cxd5 {[%emt 0:00:07]} 4. Ne5 {[%emt 0:00:06]} Nc6 {[%emt 0:00:32]} 5. d4 {[%emt 0:00:06]} Qb6 {[%emt 0:11:25]} 6. c3 {[%emt 0:08:50]} Bf5 {[%emt 0:05:11]} 7. Nd2 {[%emt 0:09:12]} e6 {[%emt 0:30:10]} 8. Be2 {[%emt 0:18:33]} Bd6 {[%emt 0:03:26]} 9. Nef3 {[%emt 0:02:18]} Nf6 {[%emt 0:06:04]} 10. Nh4 {[%emt 0:05:33]} Bg6 {[%emt 0:00:55]} 11. O-O {[%emt 0:00:36]} Qc7 {[%emt 0:01:34]} 12. g3 {[%emt 0:00:16]} a6 {[%emt 0:02:07]} 13. a4 {[%emt 0:01:57]} Rc8 {[%emt 0:02:05]} 14. Ndf3 {[%emt 0:08:01]} Bh5 {[%emt 0:04:05]} 15. Ng2 {[%emt 0:03:39]} O-O {[%emt 0:01:09]} 16. Bf4 {[%emt 0:01:27]} Ne4 {[%emt 0:03:18]} 17. Bxd6 {[%emt 0:03:00]} Nxd6 {[%emt 0:00:48]} 18. Nf4 {[%emt 0:00:44]} Bxf3 {[%emt 0:03:02]} 19. Bxf3 {[%emt 0:00:02]} Na5 {[%emt 0:01:06]} 20. Re1 {[%emt 0:01:29]} Nac4 {[%emt 0:01:13]} 21. Nd3 {[%emt 0:05:38]} b6 {[%emt 0:00:25]} 22. Re2 {[%emt 0:01:40]} Rfe8 {[%emt 0:00:49]} 23. Qe1 {[%emt 0:01:12]} Qd7 {[%emt 0:00:56]} 24. Kg2 {[%emt 0:01:05]} Nf5 {[%emt 0:05:48]} 25. h4 {[%emt 0:03:24]} Red8 {[%emt 0:01:50]} 26. Bg4 {[%emt 0:02:23]} Re8 {[%emt 0:02:33]} 27. Qd1 {[%emt 0:07:24]} Nfd6 {[%emt 0:01:02]} 28. Bf3 {[%emt 0:01:29]} Nf5 {[%emt 0:00:46]} 29. Qb3 {[%emt 0:00:22]} Rb8 {[%emt 0:01:16]} 30. Rae1 {[%emt 0:00:56]} Nfd6 {[%emt 0:02:33]} 31. Qc2 {[%emt 0:01:57]} Rec8 {[%emt 0:00:52]} 32. Kg1 {[%emt 0:04:13]} Rd8 {[%emt 0:01:07]} 33. Nb4 {[%emt 0:04:22]} Qc8 {[%emt 0:01:40]} 34. Qc1 {[%emt 0:00:39]} Na5 {[%emt 0:01:29]} 35. Qf4 {[%emt 0:00:36]} Nc6 {[%emt 0:00:33]} 36. Nd3 {[%emt 0:00:21]} Qc7 {[%emt 0:00:42]} 37. Qg4 {[%emt 0:01:01]} Ne8 {[%emt 0:00:41]} 38. h5 {[%emt 0:01:06]} (38. Qh3 $14) 38... h6 $11 {[%emt 0:00:21]} 39. Bg2 {[%emt 0:00:51]} Nf6 {[%emt 0:01:52]} 40. Qh4 {[%emt 0:00:08]} Ne7 {[%emt 0:01:14]} 41. g4 {[%emt 0:01:08]} Qc4 {[%emt 0:00:33]} ({Black should try} 41... b5 $14) 42. Ne5 $16 {[%emt 0:00:03]} Qxa4 {[%emt 0:00:18]} (42... Qc7 $16 {was worth a try.}) 43. f4 {[%emt 0:00:33]} Rbc8 {[%emt 0:01:29]} 44. Qh3 {[%emt 0:00:53]} (44. f5 $142 {fxe6 would now be deadly.} Re8 (44... exf5 $2 45. g5 $18) 45. fxe6 fxe6 46. Qh3) 44... Nc6 {[%emt 0:01:16]} (44... Ne4 $16) 45. g5 $1 $18 {[%emt 0:00:18]} (45. Nxf7 $6 Nxd4 46. Rd2 Kxf7 $16) 45... hxg5 {[%emt 0:00:46]} 46. fxg5 {[%emt 0:00:11]} (46. Nxf7 Nxd4 47. fxg5 (47. Nxd8 Nxe2+ 48. Rxe2 g4 $11) (47. cxd4 Qxd4+ 48. Qe3 Qxe3+ 49. Rxe3 Kxf7 $17) 47... Nxe2+ (47... Kxf7 $2 48. cxd4 Qxd4+ 49. Rf2 $18) 48. Rxe2 Rf8 $14 (48... Qd1+ 49. Bf1 $14)) 46... Ne4 $2 {[%emt 0:00:15]} (46... Nxe5 47. gxf6 (47. dxe5 Ne4 $16) (47. Rxe5 Nd7 $16) 47... gxf6 48. dxe5 f5) 47. Bxe4 $18 {[%emt 0:01:03]} dxe4 {[%emt 0:00:13]} 48. Rxe4 $2 {[%emt 0:00:35]} (48. h6 $18 {Threatening mate with hxg7.} Nxe5 49. hxg7 Nf3+ 50. Kf2) 48... Nxe5 $16 {[%emt 0:00:35]} 49. Rxe5 {[%emt 0:00:01]} Qc2 {[%emt 0:00:56]} 50. g6 {[%emt 0:00:49]} fxg6 $2 {[%emt 0:00:38][%mdl 8192]} (50... Rf8 $16) 51. Qxe6+ $18 {[%emt 0:00:04]} Kh7 {[%emt 0:00:03]} 52. hxg6+ $2 {[%emt 0:00:49]} ({Not} 52. Qxb6 Rf8 53. Qxg6+ (53. Qxa6 Qf2+ 54. Kh1 Qh4+ 55. Kg1 Qg3+ 56. Kh1 Qf3+ 57. Kh2 Qf2+ 58. Kh1 Qh4+ 59. Kg1 Rxc3 $11) 53... Qxg6+ 54. hxg6+ Kxg6 $18) (52. Kh1 $18 {and White stays clearly on top. White wants to mate with R5e2.} g5 53. Rxg5) 52... Qxg6+ $16 {[%emt 0:00:26]} 53. Qxg6+ {[%emt 0:00:02]} Kxg6 {[%emt 0:00:06]} 54. Re6+ {[%emt 0:00:08]} Kf5 {[%emt 0:00:40]} 55. Rxb6 {[%emt 0:00:17]} Rb8 {[%emt 0:00:14] [#]} 56. Rxb8 $1 {[%emt 0:01:09]} Rxb8 {[%emt 0:00:03]} 57. Re2 {[%emt 0:00:02]} ({White should play} 57. b4 $16) 57... a5 $14 {[%emt 0:00:17]} 58. d5 {[%emt 0:00:59]} a4 {[%emt 0:00:34]} 59. Kf2 {[%emt 0:01:11]} Rb3 {[%emt 0:02:47] [#]} (59... Rc8 $11 {remains equal.}) 60. d6 $1 $16 {[%emt 0:00:24]} Rb7 $2 {[%emt 0:00:41][%mdl 8192]} (60... Rb8 $16) 61. c4 {[%emt 0:00:13]} 1-0

[Event "Bundesturnier Hauptturnier 1 2024"]
[Site "Olten"]
[Date "2024.05.11"]
[Round "5.4"]
[White "Pahud, Cedric"]
[Black "Joie, Sebastien"]
[Result "1/2-1/2"]
[ECO "D11"]
[WhiteElo "2135"]
[BlackElo "2382"]
[Annotator "ChessBase"]
[PlyCount "137"]
[EventDate "2024.05.09"]
[EventType "tourn"]
[EventCountry "SUI"]
[SourceTitle "playchess.com"]
[Source "ChessBase"]
[SourceQuality "1"]
[TimeControl "5400+30"]

1. Nf3 {[%emt 0:00:05]} d5 {[%emt 0:00:44]} 2. c4 {[%emt 0:00:06]} c6 {[%emt 0:00:06]} 3. e3 {[%emt 0:00:14]} Bg4 {[%emt 0:01:12]} 4. d4 {[%emt 0:00:43]} Nf6 {[%emt 0:00:40]} 5. h3 {[%emt 0:00:58]} Bxf3 {[%emt 0:00:09]} 6. Qxf3 {[%emt 0:00:05]} e6 {[%emt 0:00:08]} 7. Nd2 {[%emt 0:00:17]} Nbd7 {[%emt 0:09:13]} 8. Bd3 {[%emt 0:00:40]} Be7 {[%emt 0:01:38]} 9. O-O {[%emt 0:00:31]} O-O {[%emt 0:00:06]} 10. Rd1 {[%emt 0:23:01]} Qb6 {[%emt 0:02:02]} 11. b3 {[%emt 0:07:16]} a5 {[%emt 0:00:44]} 12. a3 {[%emt 0:00:13]} e5 {[%emt 0:31:51]} 13. cxd5 {[%emt 0:02:06]} cxd5 {[%emt 0:00:14]} 14. dxe5 {[%emt 0:00:20]} Nxe5 {[%emt 0:00:06]} 15. Qf5 {[%emt 0:06:05]} Qe6 {[%emt 0:12:33]} 16. Bb2 {[%emt 0:04:37]} Bd6 {[%emt 0:01:30]} 17. Nf3 {[%emt 0:06:30]} Nxf3+ {[%emt 0:01:41]} 18. gxf3 {[%emt 0:03:17]} Be7 {[%emt 0:01:35]} 19. Rac1 {[%emt 0:02:38]} Qxf5 {[%emt 0:20:17]} 20. Bxf5 {[%emt 0:00:42]} g6 {[%emt 0:00:04]} 21. Bd3 {[%emt 0:02:53]} Rfc8 {[%emt 0:00:14]} 22. Bb5 {[%emt 0:01:00]} Kf8 {[%emt 0:01:30]} 23. a4 {[%emt 0:12:58]} Bd8 {[%emt 0:06:36]} 24. Kg2 {[%emt 0:02:16]} Ke7 {[%emt 0:00:18]} 25. Rxc8 {[%emt 0:03:17]} Rxc8 {[%emt 0:00:01]} 26. Bxf6+ {[%emt 0:00:15]} Kxf6 {[%emt 0:00:03]} 27. Rxd5 {[%emt 0:00:10]} Be7 {[%emt 0:04:00]} 28. Rd7 {[%emt 0:03:50]} b6 {[%emt 0:00:05]} 29. Rb7 {[%emt 0:02:55]} Bc5 {[%emt 0:00:21]} 30. Bc4 {[%emt 0:00:11]} Rf8 {[%emt 0:00:01]} 31. f4 {[%emt 0:00:42]} h6 {[%emt 0:00:19]} 32. h4 {[%emt 0:03:04]} Kg7 {[%emt 0:02:12]} 33. Kg3 {[%emt 0:00:13]} Kf6 {[%emt 0:00:33]} 34. Kg4 {[%emt 0:00:39]} Kg7 {[%emt 0:00:45]} 35. h5 {[%emt 0:07:04]} Kf6 {[%emt 0:00:38]} 36. Rd7 {[%emt 0:00:51]} Kg7 {[%emt 0:01:10]} 37. hxg6 {[%emt 0:00:27]} Kxg6 {[%emt 0:00:01]} 38. Rc7 {[%emt 0:00:16]} f5+ {[%emt 0:01:54]} 39. Kh4 {[%emt 0:00:16]} Rf6 {[%emt 0:00:51]} 40. Bg8 {[%emt 0:02:11]} h5 {[%emt 0:00:53]} 41. Bd5 {[%emt 0:00:50]} Bd6 {[%emt 0:00:58]} 42. Rd7 {[%emt 0:00:14]} Bb4 {[%emt 0:00:20]} 43. Bf3 {[%emt 0:01:47]} Be1 {[%emt 0:00:02]} 44. Kg3 {[%emt 0:00:37]} Kh6 {[%emt 0:00:00]} 45. Rd1 {[%emt 0:00:21]} Rg6+ {[%emt 0:00:09]} 46. Kh2 {[%emt 0:01:49]} Bxf2 {[%emt 0:00:03]} 47. e4 {[%emt 0:00:47]} Bg3+ {[%emt 0:00:31]} 48. Kh1 {[%emt 0:00:13]} fxe4 {[%emt 0:00:48]} 49. Bxe4 {[%emt 0:00:10]} Re6 {[%emt 0:00:18]} 50. Bd5 {[%emt 0:01:26]} Rd6 {[%emt 0:01:41]} 51. f5 {[%emt 0:00:48]} Kg5 {[%emt 0:00:10]} 52. Bf3 {[%emt 0:00:31]} Rf6 {[%emt 0:01:12]} 53. Rd5 {[%emt 0:00:55]} Kf4 {[%emt 0:00:30]} 54. Kg2 {[%emt 0:00:23]} h4 {[%emt 0:00:07]} 55. Be2 {[%emt 0:00:19]} Ke4 {[%emt 0:00:38]} 56. Bc4 {[%emt 0:00:42]} Be5 {[%emt 0:00:08]} 57. Kh3 {[%emt 0:00:17]} Kxf5 {[%emt 0:00:05]} 58. Rd1 {[%emt 0:00:55]} Bf4 {[%emt 0:01:02]} 59. Rd5+ {[%emt 0:00:14]} Be5 {[%emt 0:00:10]} 60. Rd1 {[%emt 0:00:01]} Rf8 {[%emt 0:00:15]} 61. Bd3+ {[%emt 0:00:50]} Kg5 {[%emt 0:00:02]} 62. Rf1 {[%emt 0:00:51]} Bf4 {[%emt 0:00:13]} 63. Rg1+ {[%emt 0:00:02]} Bg3 {[%emt 0:00:13]} 64. Rf1 {[%emt 0:00:24]} Bf2 {[%emt 0:00:51]} 65. Bc4 {[%emt 0:00:13]} Rf4 {[%emt 0:02:33]} 66. Kg2 {[%emt 0:00:25]} h3+ {[%emt 0:00:52]} 67. Kxh3 {[%emt 0:00:13]} Rh4+ {[%emt 0:00:03]} 68. Kg2 {[%emt 0:00:06]} Bc5 {[%emt 0:00:05]} 69. Kf3 {[%emt 0:00:31]} 1/2-1/2

[Event "Bundesturnier Hauptturnier 1 2024"]
[Site "Olten"]
[Date "2024.05.11"]
[Round "5.5"]
[White "Loetscher, Roland"]
[Black "Gut, Lionel"]
[Result "1-0"]
[ECO "A29"]
[WhiteElo "2384"]
[BlackElo "2124"]
[Annotator "ChessBase"]
[PlyCount "49"]
[EventDate "2024.05.09"]
[EventType "tourn"]
[EventCountry "SUI"]
[SourceTitle "playchess.com"]
[Source "ChessBase"]
[SourceQuality "1"]
[TimeControl "5400+30"]

1. c4 {[%emt 0:00:02]} e5 {[%emt 0:00:08]} 2. g3 {[%emt 0:00:06]} Nf6 {[%emt 0:00:04]} 3. Bg2 {[%emt 0:00:07]} d5 {[%emt 0:00:04]} 4. cxd5 {[%emt 0:00:08]} Nxd5 {[%emt 0:00:05]} 5. Nf3 {[%emt 0:03:56]} Nc6 {[%emt 0:00:27]} 6. O-O {[%emt 0:00:23]} Be7 {[%emt 0:01:09]} 7. Nc3 {[%emt 0:00:13]} Nb6 {[%emt 0:01:16]} 8. d3 {[%emt 0:00:59]} O-O {[%emt 0:00:35]} 9. a3 {[%emt 0:00:49]} a5 {[%emt 0:07:19]} 10. Be3 {[%emt 0:00:26]} Be6 {[%emt 0:01:45]} 11. Bxb6 {[%emt 0:05:12]} cxb6 {[%emt 0:01:18]} 12. Nd2 {[%emt 0:00:09]} Nd4 {[%emt 0:18:50]} 13. Bxb7 {[%emt 0:02:10]} Rb8 {[%emt 0:01:54]} 14. Bg2 {[%emt 0:00:11]} b5 {[%emt 0:02:42]} 15. e3 {[%emt 0:01:37]} Nf5 {[%emt 0:01:05]} 16. Qe2 {[%emt 0:00:59]} Qd7 {[%emt 0:08:35]} 17. Rfd1 {[%emt 0:02:27]} Rfc8 {[%emt 0:05:44]} 18. Nf3 {[%emt 0:01:18]} Bb3 {[%emt 0:04:35]} 19. Nxe5 {[%emt 0:06:37]} Qe6 {[%emt 0:01:10]} 20. d4 {[%emt 0:00:48]} Bxd1 {[%emt 0:00:04]} 21. Rxd1 {[%emt 0:00:17]} Nh6 {[%emt 0:17:20]} 22. Nc6 {[%emt 0:05:25]} Rb7 {[%emt 0:04:53]} 23. Nxa5 {[%emt 0:07:39]} Rbc7 {[%emt 0:00:17]} 24. Nc6 {[%emt 0:03:03]} Qb3 {[%emt 0:01:38]} 25. Bd5 {[%emt 0:00:35]} 1-0

[Event "Bundesturnier Hauptturnier 1 2024"]
[Site "Olten"]
[Date "2024.05.11"]
[Round "5.6"]
[White "Rohrer, Christophe"]
[Black "Gemelli, Romain"]
[Result "1-0"]
[ECO "C78"]
[WhiteElo "2240"]
[BlackElo "2047"]
[Annotator "ChessBase"]
[PlyCount "59"]
[EventDate "2024.05.09"]
[EventType "tourn"]
[EventCountry "SUI"]
[SourceTitle "playchess.com"]
[Source "ChessBase"]
[SourceQuality "1"]
[TimeControl "5400+30"]

1. e4 {[%emt 0:00:04]} e5 {[%emt 0:00:12]} 2. Nf3 {[%emt 0:00:06]} Nc6 {[%emt 0:00:06]} 3. Bb5 {[%emt 0:00:08]} a6 {[%emt 0:00:06]} 4. Ba4 {[%emt 0:00:11]} Nf6 {[%emt 0:00:08]} 5. O-O {[%emt 0:00:17]} b5 {[%emt 0:00:05]} 6. Bb3 {[%emt 0:00:08]} Bc5 {[%emt 0:00:06]} 7. Nc3 {[%emt 0:00:35]} O-O {[%emt 0:00:30]} 8. d3 {[%emt 0:02:12]} d6 {[%emt 0:01:00]} 9. Nd5 {[%emt 0:01:00]} Nxd5 {[%emt 0:02:07]} 10. Bxd5 {[%emt 0:00:06]} Qe8 {[%emt 0:00:30]} 11. c3 {[%emt 0:01:58]} Rb8 {[%emt 0:00:42]} 12. b4 {[%emt 0:04:02]} Bb6 {[%emt 0:00:55]} 13. Be3 {[%emt 0:01:17]} Be6 {[%emt 0:10:17]} 14. Bb3 {[%emt 0:01:51]} Ne7 {[%emt 0:07:55]} 15. Nh4 {[%emt 0:10:56]} Ng6 {[%emt 0:06:51]} 16. Nf5 {[%emt 0:04:01]} Qd7 {[%emt 0:04:35]} 17. Qg4 {[%emt 0:07:34]} Bxf5 {[%emt 0:12:14]} 18. exf5 {[%emt 0:13:57]} Ne7 {[%emt 0:03:25]} 19. Bxb6 {[%emt 0:09:05]} Rxb6 {[%emt 0:06:09]} 20. f4 {[%emt 0:00:49]} g6 {[%emt 0:12:44]} 21. fxe5 {[%emt 0:01:37]} Nxf5 {[%emt 0:03:05]} 22. Rae1 {[%emt 0:03:07]} d5 {[%emt 0:03:52]} 23. d4 {[%emt 0:01:48]} Rd8 {[%emt 0:00:33]} 24. Rf3 {[%emt 0:03:09]} Ng7 {[%emt 0:01:04]} 25. Qh4 {[%emt 0:00:34]} Rbb8 {[%emt 0:02:38]} 26. Ref1 {[%emt 0:00:45]} Rf8 {[%emt 0:00:49]} 27. Qh6 {[%emt 0:04:14]} Nh5 {[%emt 0:10:53]} 28. Bd1 {[%emt 0:01:17]} f5 {[%emt 0:00:38]} 29. exf6 {[%emt 0:01:32]} Rf7 {[%emt 0:00:26]} 30. g4 {[%emt 0:02:06]} 1-0

[Event "Bundesturnier Hauptturnier 1 2024"]
[Site "Olten"]
[Date "2024.05.11"]
[Round "5.7"]
[White "Retti, Ivan"]
[Black "Toktomushev, Teimur"]
[Result "1-0"]
[ECO "B40"]
[WhiteElo "2076"]
[BlackElo "2295"]
[Annotator "ChessBase"]
[PlyCount "63"]
[EventDate "2024.05.09"]
[EventType "tourn"]
[EventCountry "SUI"]
[SourceTitle "playchess.com"]
[Source "ChessBase"]
[SourceQuality "1"]
[TimeControl "5400+30"]

1. e4 {[%emt 0:00:04]} c5 {[%emt 0:05:04]} 2. Nf3 {[%emt 0:00:07]} e6 {[%emt 0:00:14]} 3. c3 {[%emt 0:00:35]} d5 {[%emt 0:00:05]} 4. e5 {[%emt 0:00:04]} d4 {[%emt 0:00:15]} 5. Bd3 {[%emt 0:00:04]} Bd7 {[%emt 0:00:40]} 6. O-O {[%emt 0:00:08]} Bc6 {[%emt 0:00:10]} 7. Na3 {[%emt 0:00:31]} Nd7 {[%emt 0:17:42]} 8. Re1 {[%emt 0:00:36]} Ne7 {[%emt 0:08:33]} 9. Be4 {[%emt 0:01:36]} dxc3 {[%emt 0:17:02]} 10. bxc3 {[%emt 0:00:37]} Bxe4 {[%emt 0:01:32]} 11. Rxe4 {[%emt 0:00:09]} Nc6 {[%emt 0:03:04]} 12. d3 {[%emt 0:05:17]} a6 {[%emt 0:03:58]} 13. Nc4 {[%emt 0:05:33]} b5 {[%emt 0:03:53]} 14. Ne3 {[%emt 0:00:06]} Qc7 {[%emt 0:11:43]} 15. a4 {[%emt 0:01:39]} Rd8 {[%emt 0:04:05]} 16. axb5 {[%emt 0:04:58]} axb5 {[%emt 0:00:19]} 17. Qb3 {[%emt 0:00:08]} Rb8 {[%emt 0:05:28]} 18. d4 {[%emt 0:12:14]} c4 {[%emt 0:01:07]} 19. Qd1 {[%emt 0:09:44]} Rd8 {[%emt 0:03:10]} 20. Qe2 {[%emt 0:05:37]} Nb6 {[%emt 0:02:36]} 21. Ng5 {[%emt 0:03:34]} h6 {[%emt 0:09:01]} 22. Qh5 {[%emt 0:01:09]} Qe7 {[%emt 0:01:17]} 23. Nh3 {[%emt 0:05:38]} g6 {[%emt 0:00:27]} 24. Qf3 {[%emt 0:01:23]} Bg7 {[%emt 0:00:22]} 25. Ba3 {[%emt 0:03:18]} b4 {[%emt 0:00:19]} 26. Rf4 {[%emt 0:07:29]} Nd5 {[%emt 0:00:45]} 27. Nxd5 {[%emt 0:00:28]} Rxd5 {[%emt 0:00:35]} 28. Bxb4 {[%emt 0:02:05]} Nxb4 {[%emt 0:00:06]} 29. Ra8+ {[%emt 0:01:02]} Rd8 {[%emt 0:00:54]} 30. Rxf7 {[%emt 0:01:44]} Nd5 {[%emt 0:00:10]} 31. Rxe7+ {[%emt 0:00:16]} Nxe7 {[%emt 0:00:06]} 32. Rxd8+ {[%emt 0:00:39]} 1-0

[Event "Bundesturnier Hauptturnier 1 2024"]
[Site "Olten"]
[Date "2024.05.11"]
[Round "5.8"]
[White "Loeffler, Markus"]
[Black "Menzi, Jonas"]
[Result "1-0"]
[ECO "C95"]
[WhiteElo "2238"]
[BlackElo "2063"]
[Annotator "ChessBase"]
[PlyCount "133"]
[EventDate "2024.05.09"]
[EventType "tourn"]
[EventCountry "SUI"]
[SourceTitle "playchess.com"]
[Source "ChessBase"]
[SourceQuality "1"]
[TimeControl "5400+30"]

1. e4 {[%emt 0:01:04]} e5 {[%emt 0:00:07]} 2. Nf3 {[%emt 0:00:06]} Nc6 {[%emt 0:00:07]} 3. Bb5 {[%emt 0:00:03]} a6 {[%emt 0:00:12]} 4. Ba4 {[%emt 0:00:01]} Nf6 {[%emt 0:00:25]} 5. O-O {[%emt 0:00:06]} Be7 {[%emt 0:00:28]} 6. Re1 {[%emt 0:00:14]} b5 {[%emt 0:00:11]} 7. Bb3 {[%emt 0:00:02]} d6 {[%emt 0:00:18]} 8. c3 {[%emt 0:00:16]} O-O {[%emt 0:00:17]} 9. h3 {[%emt 0:00:01]} Nb8 {[%emt 0:00:20]} 10. d4 {[%emt 0:00:22]} Nbd7 {[%emt 0:00:19]} 11. Nbd2 {[%emt 0:00:16]} Bb7 {[%emt 0:00:16]} 12. Bc2 {[%emt 0:00:48]} Re8 {[%emt 0:00:16]} 13. Nf1 {[%emt 0:00:22]} Bf8 {[%emt 0:00:18]} 14. Ng3 {[%emt 0:00:04]} g6 {[%emt 0:00:15]} 15. a3 {[%emt 0:03:03]} Bg7 {[%emt 0:19:55]} 16. a4 {[%emt 0:11:49]} d5 {[%emt 0:13:47]} 17. Nxe5 {[%emt 0:02:46]} Nxe5 {[%emt 0:06:27]} 18. dxe5 {[%emt 0:00:02]} Nxe4 {[%emt 0:00:09]} 19. Nxe4 {[%emt 0:00:41]} dxe4 {[%emt 0:00:25]} 20. Qxd8 {[%emt 0:02:31]} Raxd8 {[%emt 0:06:03]} 21. Bg5 {[%emt 0:01:51]} Rd7 {[%emt 0:12:36]} 22. axb5 {[%emt 0:08:25]} axb5 {[%emt 0:00:22]} 23. Bxe4 {[%emt 0:09:15]} Bxe4 {[%emt 0:00:10]} 24. Rxe4 {[%emt 0:00:05]} f6 {[%emt 0:02:15]} 25. Be3 {[%emt 0:03:24]} Rxe5 {[%emt 0:01:42]} 26. Rxe5 {[%emt 0:00:07]} fxe5 {[%emt 0:00:06]} 27. Kf1 {[%emt 0:07:55]} Kf7 {[%emt 0:03:23]} 28. Ke2 {[%emt 0:00:27]} Ke6 {[%emt 0:03:07]} 29. Ra5 {[%emt 0:15:28]} c6 {[%emt 0:02:14]} 30. b3 {[%emt 0:00:45]} e4 {[%emt 0:12:21]} 31. c4 {[%emt 0:05:45]} bxc4 {[%emt 0:00:53]} 32. bxc4 {[%emt 0:00:02]} Rb7 {[%emt 0:01:35]} 33. Ra6 {[%emt 0:07:57]} Kd6 {[%emt 0:02:00]} 34. Bb6 {[%emt 0:03:05]} Bh6 {[%emt 0:02:09]} 35. h4 {[%emt 0:07:25]} Bf4 {[%emt 0:01:15]} 36. g3 {[%emt 0:00:44]} Bc1 {[%emt 0:01:31]} 37. Kd1 {[%emt 0:01:10]} Bh6 {[%emt 0:03:58]} 38. Ke2 {[%emt 0:00:36]} Bc1 {[%emt 0:00:06]} 39. g4 {[%emt 0:01:50]} Bf4 {[%emt 0:01:02]} 40. Ra5 {[%emt 0:03:33]} Ke6 {[%emt 0:01:18]} 41. Ra6 {[%emt 0:02:07]} Kd6 {[%emt 0:00:30]} 42. h5 {[%emt 0:00:48]} gxh5 {[%emt 0:00:41]} 43. gxh5 {[%emt 0:00:01]} Bc1 {[%emt 0:04:20]} 44. Ra5 {[%emt 0:01:03]} Bf4 {[%emt 0:01:39]} 45. Rf5 {[%emt 0:00:46]} Be5 {[%emt 0:00:29]} 46. Be3 {[%emt 0:00:43]} Rb2+ {[%emt 0:00:24]} 47. Kf1 {[%emt 0:00:12]} Ke6 {[%emt 0:00:19]} 48. Rf8 {[%emt 0:00:15]} Ke7 {[%emt 0:00:51]} 49. Ra8 {[%emt 0:00:58]} Rb7 {[%emt 0:00:29]} 50. Kg2 {[%emt 0:00:19]} Ke6 {[%emt 0:00:22]} 51. Kh3 {[%emt 0:00:41]} Rg7 {[%emt 0:00:23]} 52. h6 {[%emt 0:01:23]} Rf7 {[%emt 0:00:40]} 53. Kg4 {[%emt 0:00:04]} Bd6 {[%emt 0:00:41]} 54. Re8+ {[%emt 0:00:17]} Re7 {[%emt 0:00:27]} 55. Rc8 {[%emt 0:01:01]} Bc7 {[%emt 0:00:24]} 56. Bc5 {[%emt 0:01:22]} Rf7 {[%emt 0:00:40]} 57. Be3 {[%emt 0:00:16]} Kd7 {[%emt 0:00:18]} 58. Ra8 {[%emt 0:00:23]} Rf6 {[%emt 0:00:36]} 59. Rg8 {[%emt 0:00:18]} Rf7 {[%emt 0:00:34]} 60. Rg7 {[%emt 0:00:26]} Ke6 {[%emt 0:00:08]} 61. Rxf7 {[%emt 0:00:21]} Kxf7 {[%emt 0:00:01]} 62. Kf5 {[%emt 0:00:09]} Bd6 {[%emt 0:00:29]} 63. Kxe4 {[%emt 0:00:08]} Kg6 {[%emt 0:00:22]} 64. c5 {[%emt 0:01:52]} Bh2 {[%emt 0:00:50]} 65. f4 {[%emt 0:00:54]} Kxh6 {[%emt 0:00:33]} 66. Kf3 {[%emt 0:00:03]} Kg6 {[%emt 0:00:59]} 67. Kg2 {[%emt 0:00:05]} 1-0

[Event "Bundesturnier Hauptturnier 1 2024"]
[Site "Olten"]
[Date "2024.05.11"]
[Round "5.9"]
[White "Bous, Florian"]
[Black "Prunescu, Claudiu"]
[Result "1/2-1/2"]
[ECO "D17"]
[WhiteElo "1970"]
[BlackElo "2249"]
[Annotator "ChessBase"]
[PlyCount "111"]
[EventDate "2024.05.09"]
[EventType "tourn"]
[EventCountry "SUI"]
[SourceTitle "playchess.com"]
[Source "ChessBase"]
[SourceQuality "1"]
[TimeControl "5400+30"]

1. d4 {[%emt 0:00:04]} d5 {[%emt 0:02:00]} 2. c4 {[%emt 0:00:17]} c6 {[%emt 0:00:24]} 3. Nf3 {[%emt 0:00:14]} Nf6 {[%emt 0:00:27]} 4. Nc3 {[%emt 0:00:09]} dxc4 {[%emt 0:00:43]} 5. a4 {[%emt 0:00:12]} Bf5 {[%emt 0:01:30]} 6. Ne5 {[%emt 0:00:16]} Na6 {[%emt 0:01:06]} 7. f3 {[%emt 0:02:34]} Nd7 {[%emt 0:02:43]} 8. Nxc4 {[%emt 0:02:00]} e5 {[%emt 0:01:38]} 9. dxe5 {[%emt 0:03:25]} Qh4+ {[%emt 0:00:47]} 10. g3 {[%emt 0:01:06]} Qxc4 {[%emt 0:00:15]} 11. e4 {[%emt 0:00:32]} Qc5 {[%emt 0:00:32]} 12. Bxa6 {[%emt 0:05:19]} bxa6 {[%emt 0:02:40]} 13. exf5 {[%emt 0:00:09]} Nxe5 {[%emt 0:10:31]} 14. Ne4 {[%emt 0:05:30]} Qa5+ {[%emt 0:09:14]} 15. Kf2 {[%emt 0:01:32]} f6 {[%emt 0:09:16]} 16. Be3 {[%emt 0:03:08]} Rd8 {[%emt 0:06:45]} 17. Qc2 {[%emt 0:02:11]} Bb4 {[%emt 0:03:55]} 18. Qb3 {[%emt 0:07:11]} Qd5 {[%emt 0:00:45]} 19. Qc2 {[%emt 0:05:38]} Qd3 {[%emt 0:02:26]} 20. Rac1 {[%emt 0:03:09]} O-O {[%emt 0:01:46]} 21. Qe2 {[%emt 0:04:25]} Rd5 {[%emt 0:08:14]} 22. Rhd1 {[%emt 0:05:11]} Qb3 {[%emt 0:05:40]} 23. Bd4 {[%emt 0:10:00]} Rfd8 {[%emt 0:04:59]} 24. f4 {[%emt 0:03:51]} Rxd4 {[%emt 0:12:51]} 25. Rxd4 {[%emt 0:00:26]} Rxd4 {[%emt 0:00:05]} 26. fxe5 {[%emt 0:00:19]} Qd5 {[%emt 0:00:17]} 27. Kf3 {[%emt 0:07:38]} Qxe5 {[%emt 0:02:49]} 28. Rc4 {[%emt 0:03:15]} Qxf5+ {[%emt 0:01:39]} 29. Kg2 {[%emt 0:00:08]} Qd5 {[%emt 0:00:59]} 30. Rxd4 {[%emt 0:03:02]} Qxd4 {[%emt 0:00:05]} 31. Nc3 {[%emt 0:03:05]} Qe5 {[%emt 0:02:04]} 32. Qc4+ {[%emt 0:00:25]} Kf8 {[%emt 0:00:11]} 33. Qxb4+ {[%emt 0:00:07]} Kf7 {[%emt 0:00:31]} 34. Qc4+ {[%emt 0:00:59]} Qe6 {[%emt 0:00:42]} 35. Qxa6 {[%emt 0:00:33]} Qd7 {[%emt 0:00:17]} 36. Qc4+ {[%emt 0:00:25]} Kg6 {[%emt 0:00:28]} 37. Qf4 {[%emt 0:01:18]} h6 {[%emt 0:00:53]} 38. g4 {[%emt 0:02:40]} h5 {[%emt 0:01:49]} 39. h3 {[%emt 0:01:17]} hxg4 {[%emt 0:02:34]} 40. hxg4 {[%emt 0:05:25]} f5 {[%emt 0:00:51]} 41. gxf5+ {[%emt 0:01:51]} Qxf5 {[%emt 0:00:07]} 42. Qxf5+ {[%emt 0:01:00]} Kxf5 {[%emt 0:00:04]} 43. Kf3 {[%emt 0:00:30]} Ke5 {[%emt 0:00:32]} 44. Ke3 {[%emt 0:00:38]} g5 {[%emt 0:00:43]} 45. b4 {[%emt 0:01:25]} g4 {[%emt 0:00:17]} 46. Ne2 {[%emt 0:03:26]} Kd5 {[%emt 0:02:42]} 47. Kd3 {[%emt 0:00:08]} a6 {[%emt 0:00:55]} 48. Nc3+ {[%emt 0:02:53]} Ke5 {[%emt 0:00:13]} 49. Ne4 {[%emt 0:00:36]} Kf4 {[%emt 0:01:17]} 50. Kd4 {[%emt 0:00:28]} Kf3 {[%emt 0:00:09]} 51. Ke5 {[%emt 0:02:54]} Ke3 {[%emt 0:00:25]} 52. Nd6 {[%emt 0:01:05]} g3 {[%emt 0:00:59]} 53. Nf5+ {[%emt 0:00:04]} Kd3 {[%emt 0:00:03]} 54. Nxg3 {[%emt 0:00:21]} Kc4 {[%emt 0:00:05]} 55. Kd6 {[%emt 0:00:16]} Kxb4 {[%emt 0:00:11]} 56. Kxc6 {[%emt 0:00:14]} 1/2-1/2